[Event "MČR v bleskovém šachu družstev 2019"]
[Site "Teplice, Czech Republic"]
[Date "2019.09.14"]
[Round "10.18"]
[White "Ruzicka, Ales"]
[Black "Buchcar, Tomas"]
[Result "0-1"]
[TimeControl "3 mim. + 2 s"]
[WhiteFideId "325252"]
[BlackFideId "328421"]
[WhiteElo "2102"]
[BlackElo "2145"]

1. e4 {[%clk 00:03:02]} {[%emt 00:00:01]} c6 {[%clk 00:03:03]} {[%emt
00:00:02]} 2. d4 {[%clk 00:03:02]} {[%emt 00:00:02]} d5 {[%clk 00:03:03]}
{[%emt 00:00:01]} 3. Nc3 {[%clk 00:03:02]} {[%emt 00:00:01]} dxe4 {[%clk
00:03:04]} {[%emt 00:00:02]} 4. Nxe4 {[%clk 00:03:03]} Nd7 {[%clk 00:03:05]}
{[%emt 00:00:01]} 5. Nf3 {[%clk 00:03:04]} {[%emt 00:00:02]} Ngf6 {[%clk
00:03:04]} {[%emt 00:00:02]} 6. Nxf6+ {[%clk 00:03:02]} {[%emt 00:00:04]} Nxf6
{[%clk 00:03:05]} {[%emt 00:00:01]} 7. h3 {[%clk 00:03:00]} {[%emt 00:00:05]}
Bf5 {[%clk 00:02:56]} {[%emt 00:00:10]} 8. Bd3 {[%clk 00:02:59]} {[%emt
00:00:03]} Bxd3 {[%clk 00:02:55]} {[%emt 00:00:03]} 9. Qxd3 {[%clk 00:03:00]}
{[%emt 00:00:02]} e6 {[%clk 00:02:55]} {[%emt 00:00:02]} 10. Bd2 {[%clk
00:02:54]} {[%emt 00:00:08]} Qd5 {[%clk 00:02:35]} {[%emt 00:00:21]} 11. O-O
{[%clk 00:02:40]} {[%emt 00:00:17]} Bd6 {[%clk 00:02:14]} {[%emt 00:00:22]} 12.
Rfe1 {[%clk 00:02:34]} {[%emt 00:00:08]} O-O {[%clk 00:01:51]} {[%emt
00:00:25]} 13. c4 {[%clk 00:02:34]} {[%emt 00:00:02]} Qh5 {[%clk 00:01:50]}
{[%emt 00:00:03]} 14. Bc3 {[%clk 00:02:21]} {[%emt 00:00:15]} Rad8 {[%clk
00:01:41]} {[%emt 00:00:11]} 15. Rad1 {[%clk 00:02:19]} {[%emt 00:00:04]} Bb8
{[%clk 00:01:39]} {[%emt 00:00:04]} 16. Qe2 {[%clk 00:02:08]} {[%emt 00:00:14]}
Rfe8 {[%clk 00:01:32]} {[%emt 00:00:09]} 17. Ne5 {[%clk 00:01:37]} {[%emt
00:00:33]} Bxe5 {[%clk 00:01:26]} {[%emt 00:00:07]} 18. Qxe5 {[%clk 00:01:35]}
{[%emt 00:00:05]} Qxe5 {[%clk 00:01:21]} {[%emt 00:00:07]} 19. Rxe5 {[%clk
00:01:31]} {[%emt 00:00:05]} Rd7 {[%clk 00:01:19]} {[%emt 00:00:04]} 20. Rde1
{[%clk 00:01:29]} {[%emt 00:00:04]} Red8 {[%clk 00:01:17]} {[%emt 00:00:05]} 21.
a4 {[%clk 00:01:26]} {[%emt 00:00:05]} h6 {[%clk 00:01:17]} {[%emt 00:00:02]}
22. a5 {[%clk 00:01:25]} {[%emt 00:00:03]} Ne8 {[%clk 00:01:08]} {[%emt
00:00:10]} 23. b4 {[%clk 00:01:24]} {[%emt 00:00:03]} Nd6 {[%clk 00:01:08]}
{[%emt 00:00:02]} 24. Rc5 {[%clk 00:01:13]} {[%emt 00:00:14]} Nf5 {[%clk
00:01:05]} {[%emt 00:00:05]} 25. b5 {[%clk 00:01:01]} {[%emt 00:00:14]} cxb5
{[%clk 00:00:54]} {[%emt 00:00:13]} 26. Rxb5 {[%clk 00:01:01]} {[%emt
00:00:01]} Rc7 {[%clk 00:00:51]} {[%emt 00:00:06]} 27. c5 {[%clk 00:00:33]}
{[%emt 00:00:30]} Nxd4 {[%clk 00:00:48]} {[%emt 00:00:05]} 28. Bxd4 {[%clk
00:00:30]} {[%emt 00:00:04]} Rxd4 {[%clk 00:00:49]} {[%emt 00:00:02]} 29. Reb1
{[%clk 00:00:31]} Rdd7 {[%clk 00:00:38]} {[%emt 00:00:13]} 30. a6 {[%clk
00:00:31]} {[%emt 00:00:02]} bxa6 {[%emt 00:00:06]} 31. Ra5 {[%emt 00:00:01]}
Rd5 {[%clk 00:00:27]} {[%emt 00:00:07]} 32. Rxa6 {[%clk 00:00:29]} {[%emt
00:00:04]} Rdxc5 {[%clk 00:00:27]} {[%emt 00:00:02]} 33. Rba1 {[%clk 00:00:29]}
{[%emt 00:00:02]} Rc1+ {[%clk 00:00:27]} {[%emt 00:00:02]} 34. Rxc1 {[%clk
00:00:27]} {[%emt 00:00:04]} Rxc1+ {[%clk 00:00:27]} 35. Kh2 {[%clk 00:00:28]}
{[%emt 00:00:01]} Rc7 {[%clk 00:00:28]} {[%emt 00:00:01]} 36. Kg3 {[%clk
00:00:30]} Kf8 {[%clk 00:00:29]} {[%emt 00:00:01]} 37. Kf4 {[%clk 00:00:31]}
Ke7 {[%clk 00:00:30]} 38. Ke5 {[%clk 00:00:31]} {[%emt 00:00:02]} Rb7 {[%clk
00:00:17]} {[%emt 00:00:15]} 39. f4 {[%clk 00:00:29]} {[%emt 00:00:05]} Kd7
{[%clk 00:00:17]} {[%emt 00:00:02]} 40. g4 {[%clk 00:00:30]} {[%emt 00:00:01]}
Kc7 {[%clk 00:00:14]} {[%emt 00:00:05]} 41. f5 {[%clk 00:00:30]} exf5 {[%clk
00:00:15]} {[%emt 00:00:01]} 42. gxf5 {[%clk 00:00:31]} {[%emt 00:00:01]} Rb5+
{[%clk 00:00:14]} {[%emt 00:00:03]} 43. Kf4 {[%clk 00:00:32]} {[%emt 00:00:01]}
Kb7 {[%clk 00:00:15]} {[%emt 00:00:02]} 44. Rd6 {[%clk 00:00:32]} Rc5 {[%clk
00:00:16]} {[%emt 00:00:01]} 45. f6 {[%clk 00:00:31]} {[%emt 00:00:03]} g5+
{[%clk 00:00:11]} {[%emt 00:00:07]} 46. Kg4 {[%clk 00:00:32]} {[%emt 00:00:01]}
Kc7 {[%clk 00:00:11]} {[%emt 00:00:02]} 47. Ra6 {[%clk 00:00:33]} {[%emt
00:00:01]} Kb7 {[%clk 00:00:12]} {[%emt 00:00:02]} 48. Rd6 {[%clk 00:00:34]}
{[%emt 00:00:01]} a5 {[%clk 00:00:10]} {[%emt 00:00:04]} 49. Rd7+ {[%clk
00:00:32]} {[%emt 00:00:04]} Rc7 {[%clk 00:00:11]} {[%emt 00:00:01]} 50. Rd5
{[%clk 00:00:33]} Kb6 {[%clk 00:00:12]} 51. Kh5 {[%clk 00:00:33]} {[%emt
00:00:01]} a4 {[%clk 00:00:13]} {[%emt 00:00:02]} 52. Kxh6 {[%clk 00:00:34]}
{[%emt 00:00:01]} a3 {[%clk 00:00:13]} {[%emt 00:00:02]} 53. Rd2 {[%clk
00:00:31]} {[%emt 00:00:05]} Rc3 {[%clk 00:00:13]} {[%emt 00:00:02]} 54. Kxg5
{[%clk 00:00:29]} {[%emt 00:00:04]} Rxh3 {[%clk 00:00:13]} {[%emt 00:00:01]} 55.
Kg4 {[%clk 00:00:26]} {[%emt 00:00:05]} Rb3 {[%clk 00:00:13]} {[%emt 00:00:03]}
56. Ra2 {[%clk 00:00:27]} {[%emt 00:00:01]} Kc5 {[%clk 00:00:12]} {[%emt
00:00:03]} 57. Kf4 {[%clk 00:00:28]} Kb4 {[%clk 00:00:11]} {[%emt 00:00:02]} 58.
Ke4 {[%clk 00:00:29]} Rh3 {[%clk 00:00:12]} {[%emt 00:00:02]} 59. Kd4 {[%clk
00:00:30]} {[%emt 00:00:02]} Kb3 {[%clk 00:00:13]} {[%emt 00:00:01]} 60. Rg2
{[%clk 00:00:20]} {[%emt 00:00:12]} Rf3 {[%clk 00:00:12]} {[%emt 00:00:02]} 61.
Rg8 {[%clk 00:00:20]} {[%emt 00:00:03]} Rxf6 {[%clk 00:00:12]} {[%emt
00:00:02]} 62. Rb8+ {[%clk 00:00:20]} Kc2 {[%clk 00:00:12]} {[%emt 00:00:02]}
63. Rc8+ {[%clk 00:00:21]} {[%emt 00:00:02]} Kd2 {[%clk 00:00:13]} 64. Ra8
{[%clk 00:00:22]} {[%emt 00:00:02]} Rf3 {[%clk 00:00:15]} 65. Ke4 {[%clk
00:00:25]} {[%emt 00:00:01]} Rb3 {[%clk 00:00:15]} {[%emt 00:00:02]} 66. Ra7
{[%clk 00:00:20]} {[%emt 00:00:07]} Kc2 {[%clk 00:00:16]} {[%emt 00:00:01]} 67.
Rxf7 {[%clk 00:00:19]} {[%emt 00:00:04]} a2 {[%clk 00:00:17]} 68. Rf2+ {[%clk
00:00:18]} {[%emt 00:00:03]} Kb1 {[%clk 00:00:17]} {[%emt 00:00:02]} 69. Rf1+
{[%clk 00:00:19]} Kb2 {[%clk 00:00:18]} {[%emt 00:00:02]} 70. Rf2+ {[%clk
00:00:19]} {[%emt 00:00:02]} Ka3 {[%clk 00:00:19]} 71. Kd4 {[%emt 00:00:11]}
0-1

[Event "MČR v bleskovém šachu družstev 2019"]
[Site "Teplice, Czech Republic"]
[Date "2019.09.14"]
[Round "10.19"]
[White "Tresnak, Filip"]
[Black "Loskot, Petr"]
[Result "1-0"]
[TimeControl "3 mim. + 2 s"]
[WhiteFideId "333905"]
[BlackFideId "319570"]
[WhiteElo "1931"]
[BlackElo "2010"]

1. e4 {[%clk 00:02:59]} {[%emt 00:00:05]} e6 {[%clk 00:03:03]} {[%emt
00:00:02]} 2. d4 {[%clk 00:02:59]} {[%emt 00:00:02]} d5 {[%clk 00:03:04]}
{[%emt 00:00:01]} 3. Nc3 {[%clk 00:02:59]} {[%emt 00:00:01]} Nf6 {[%clk
00:03:03]} {[%emt 00:00:03]} 4. Bg5 {[%clk 00:03:00]} {[%emt 00:00:01]} Bb4
{[%clk 00:03:04]} {[%emt 00:00:02]} 5. e5 {[%clk 00:03:00]} {[%emt 00:00:02]}
h6 {[%clk 00:03:05]} 6. exf6 {[%clk 00:03:01]} {[%emt 00:00:02]} hxg5 {[%clk
00:03:05]} {[%emt 00:00:01]} 7. fxg7 {[%clk 00:03:02]} {[%emt 00:00:02]} Rg8
{[%clk 00:03:05]} {[%emt 00:00:01]} 8. Qh5 {[%clk 00:02:52]} {[%emt 00:00:12]}
Qf6 {[%clk 00:03:06]} {[%emt 00:00:02]} 9. Nf3 {[%clk 00:02:46]} {[%emt
00:00:08]} Qxg7 {[%clk 00:03:02]} {[%emt 00:00:05]} 10. h4 {[%clk 00:02:41]}
{[%emt 00:00:07]} gxh4 {[%clk 00:02:58]} {[%emt 00:00:06]} 11. Rxh4 {[%clk
00:02:38]} {[%emt 00:00:05]} Nc6 {[%clk 00:02:52]} {[%emt 00:00:08]} 12. O-O-O
{[%clk 00:02:17]} {[%emt 00:00:23]} Bd7 {[%clk 00:02:53]} 13. Bd3 {[%clk
00:02:10]} {[%emt 00:00:09]} O-O-O {[%clk 00:02:45]} {[%emt 00:00:10]} 14. Rf4
{[%clk 00:01:53]} {[%emt 00:00:19]} Rdf8 {[%clk 00:02:39]} {[%emt 00:00:08]} 15.
Ne1 {[%clk 00:01:38]} {[%emt 00:00:17]} Rh8 {[%clk 00:02:34]} {[%emt 00:00:08]}
16. Qg4 {[%clk 00:01:31]} {[%emt 00:00:09]} Qxg4 {[%clk 00:02:15]} {[%emt
00:00:20]} 17. Rxg4 {[%clk 00:01:32]} {[%emt 00:00:02]} Rfg8 {[%clk 00:02:17]}
18. Rxg8+ {[%clk 00:01:23]} {[%emt 00:00:11]} Rxg8 {[%clk 00:02:17]} {[%emt
00:00:01]} 19. a3 {[%clk 00:01:23]} {[%emt 00:00:03]} Bd6 {[%clk 00:02:00]}
{[%emt 00:00:19]} 20. Be2 {[%clk 00:01:11]} {[%emt 00:00:14]} Bf4+ {[%clk
00:01:58]} {[%emt 00:00:04]} 21. Kb1 {[%clk 00:01:12]} {[%emt 00:00:01]} a6
{[%clk 00:01:46]} {[%emt 00:00:14]} 22. g3 {[%clk 00:01:10]} {[%emt 00:00:04]}
Bd6 {[%clk 00:01:45]} {[%emt 00:00:02]} 23. Bh5 {[%clk 00:00:56]} {[%emt
00:00:16]} Rg7 {[%clk 00:01:42]} {[%emt 00:00:06]} 24. Ne2 {[%clk 00:00:57]}
{[%emt 00:00:01]} f6 {[%clk 00:01:35]} {[%emt 00:00:09]} 25. f4 {[%clk
00:00:54]} {[%emt 00:00:04]} Ne7 {[%clk 00:01:30]} {[%emt 00:00:08]} 26. Nd3
{[%clk 00:00:46]} {[%emt 00:00:10]} b6 {[%clk 00:01:22]} {[%emt 00:00:10]} 27.
b4 {[%clk 00:00:45]} {[%emt 00:00:02]} Nf5 {[%clk 00:01:22]} {[%emt 00:00:02]}
28. g4 {[%clk 00:00:33]} {[%emt 00:00:14]} Ne3 {[%clk 00:01:21]} {[%emt
00:00:04]} 29. Rg1 {[%clk 00:00:33]} {[%emt 00:00:01]} Nc4 {[%clk 00:01:22]}
{[%emt 00:00:02]} 30. Ka2 {[%clk 00:00:32]} {[%emt 00:00:03]} Ba4 {[%clk
00:01:12]} {[%emt 00:00:11]} 31. Ne1 {[%clk 00:00:25]} {[%emt 00:00:10]} Kd7
{[%clk 00:01:07]} {[%emt 00:00:06]} 32. g5 {[%clk 00:00:25]} {[%emt 00:00:02]}
Ne3 {[%clk 00:01:00]} {[%emt 00:00:10]} 33. Kb2 {[%clk 00:00:24]} {[%emt
00:00:03]} fxg5 {[%clk 00:01:00]} {[%emt 00:00:02]} 34. fxg5 {[%clk 00:00:21]}
{[%emt 00:00:05]} Bb5 {[%clk 00:00:57]} {[%emt 00:00:05]} 35. Nd3 {[%clk
00:00:17]} {[%emt 00:00:06]} Nf5 {[%clk 00:00:49]} {[%emt 00:00:09]} 36. Ndf4
{[%clk 00:00:15]} {[%emt 00:00:03]} Bxe2 37. Nxe2 {[%clk 00:00:16]} c5 {[%clk
00:00:45]} {[%emt 00:00:02]} 38. dxc5 {[%clk 00:00:15]} {[%emt 00:00:04]} bxc5
{[%clk 00:00:46]} 39. bxc5 {[%clk 00:00:15]} {[%emt 00:00:02]} Bxc5 {[%clk
00:00:47]} 40. Rg4 {[%clk 00:00:12]} {[%emt 00:00:05]} Kc6 {[%clk 00:00:33]}
{[%emt 00:00:15]} 41. Nf4 {[%clk 00:00:10]} {[%emt 00:00:06]} Kd6 {[%clk
00:00:24]} {[%emt 00:00:10]} 42. Nd3 {[%clk 00:00:09]} {[%emt 00:00:03]} Bd4+
{[%clk 00:00:21]} {[%emt 00:00:06]} 43. c3 {[%clk 00:00:08]} {[%emt 00:00:03]}
Rb7+ {[%clk 00:00:22]} 44. Kc2 {[%clk 00:00:09]} Rc7 {[%clk 00:00:22]} {[%emt
00:00:02]} 45. Kd2 {[%clk 00:00:05]} {[%emt 00:00:06]} Rxc3 {[%clk 00:00:21]}
{[%emt 00:00:02]} 46. Rxd4 {[%clk 00:00:05]} {[%emt 00:00:03]} Rxa3 {[%clk
00:00:18]} {[%emt 00:00:05]} 47. Rb4 {[%emt 00:00:03]} Ra2+ {[%clk 00:00:16]}
{[%emt 00:00:03]} 48. Kc3 {[%clk 00:00:04]} {[%emt 00:00:03]} e5 {[%clk
00:00:15]} {[%emt 00:00:03]} 49. Rb6+ {[%clk 00:00:05]} Kc7 {[%clk 00:00:15]}
{[%emt 00:00:01]} 50. Rf6 {[%clk 00:00:04]} {[%emt 00:00:02]} Nd4 {[%clk
00:00:13]} {[%emt 00:00:05]} 51. Nxe5 {[%clk 00:00:05]} {[%emt 00:00:02]} Nb5+
{[%clk 00:00:11]} {[%emt 00:00:04]} 52. Kb3 {[%clk 00:00:05]} {[%emt 00:00:01]}
Ra3+ {[%clk 00:00:11]} {[%emt 00:00:02]} 53. Kb2 {[%clk 00:00:07]} Rh3 {[%clk
00:00:12]} 54. Bg4 {[%clk 00:00:07]} {[%emt 00:00:02]} Rh2+ {[%clk 00:00:12]}
{[%emt 00:00:02]} 55. Kb3 {[%clk 00:00:08]} {[%emt 00:00:01]} Nd4+ {[%clk
00:00:13]} {[%emt 00:00:01]} 56. Kc3 {[%clk 00:00:09]} {[%emt 00:00:02]} Nc6
{[%clk 00:00:09]} {[%emt 00:00:05]} 57. Rxc6+ {[%clk 00:00:09]} {[%emt
00:00:02]} 1-0

[Event "MČR v bleskovém šachu družstev 2019"]
[Site "Teplice, Czech Republic"]
[Date "2019.09.14"]
[Round "10.21"]
[White "Sprenar, Petr"]
[Black "Babicka, Michal"]
[Result "1/2-1/2"]
[TimeControl "3 mim. + 2 s"]
[WhiteFideId "397164"]
[WhiteElo "2173"]
[BlackElo "2076"]

1. d4 {[%clk 00:03:03]} Nf6 {[%clk 00:03:03]} {[%emt 00:00:01]} 2. c4 {[%clk
00:03:04]} g6 {[%clk 00:03:05]} 3. g3 {[%clk 00:03:05]} Bg7 {[%clk 00:03:04]}
{[%emt 00:00:04]} 4. Bg2 {[%clk 00:03:06]} O-O {[%clk 00:03:05]} {[%emt
00:00:03]} 5. Nc3 {[%clk 00:03:08]} {[%emt 00:00:01]} d6 {[%clk 00:03:06]} 6.
Nf3 {[%clk 00:03:09]} c5 {[%clk 00:03:07]} 7. O-O {[%clk 00:03:09]} {[%emt
00:00:02]} Nbd7 {[%clk 00:02:35]} {[%emt 00:00:34]} 8. b3 {[%clk 00:03:09]}
{[%emt 00:00:02]} Rb8 {[%clk 00:02:31]} {[%emt 00:00:05]} 9. Bb2 {[%clk
00:03:09]} {[%emt 00:00:02]} a6 {[%clk 00:02:32]} {[%emt 00:00:02]} 10. dxc5
{[%clk 00:03:07]} {[%emt 00:00:03]} Nxc5 {[%clk 00:02:25]} {[%emt 00:00:09]} 11.
Nd4 {[%clk 00:03:07]} {[%emt 00:00:03]} Bd7 {[%clk 00:02:15]} {[%emt 00:00:12]}
12. Nc2 {[%clk 00:02:47]} {[%emt 00:00:22]} Bc6 {[%clk 00:02:10]} {[%emt
00:00:07]} 13. Ne3 {[%clk 00:02:42]} {[%emt 00:00:07]} Bxg2 {[%clk 00:02:06]}
{[%emt 00:00:05]} 14. Kxg2 {[%clk 00:02:43]} {[%emt 00:00:01]} Nfe4 {[%clk
00:02:05]} {[%emt 00:00:03]} 15. Qc2 {[%clk 00:02:37]} {[%emt 00:00:08]} Nxc3
{[%clk 00:01:57]} {[%emt 00:00:11]} 16. Bxc3 {[%clk 00:02:38]} {[%emt
00:00:01]} b5 {[%clk 00:01:54]} {[%emt 00:00:05]} 17. Bxg7 {[%clk 00:02:35]}
{[%emt 00:00:04]} Kxg7 {[%clk 00:01:55]} {[%emt 00:00:01]} 18. h4 {[%clk
00:02:36]} {[%emt 00:00:02]} bxc4 {[%clk 00:01:43]} {[%emt 00:00:14]} 19. Qxc4
{[%clk 00:02:33]} {[%emt 00:00:04]} a5 {[%clk 00:01:43]} {[%emt 00:00:03]} 20.
h5 {[%clk 00:02:31]} {[%emt 00:00:04]} Rb4 {[%clk 00:01:32]} {[%emt 00:00:13]}
21. Qc3+ {[%clk 00:02:31]} {[%emt 00:00:01]} f6 {[%clk 00:01:21]} {[%emt
00:00:14]} 22. Nc4 {[%clk 00:02:15]} {[%emt 00:00:18]} Qa8+ {[%clk 00:01:01]}
{[%emt 00:00:22]} 23. f3 {[%clk 00:02:15]} {[%emt 00:00:02]} d5 {[%clk
00:01:00]} {[%emt 00:00:02]} 24. Nb6 {[%clk 00:01:46]} {[%emt 00:00:31]} Rxb6
{[%clk 00:00:54]} {[%emt 00:00:08]} 25. Qxc5 {[%clk 00:01:47]} {[%emt
00:00:02]} Rd6 {[%clk 00:00:53]} {[%emt 00:00:03]} 26. Rac1 {[%clk 00:01:42]}
{[%emt 00:00:07]} Rfd8 {[%clk 00:00:52]} {[%emt 00:00:02]} 27. Rfd1 {[%clk
00:01:39]} {[%emt 00:00:05]} Qa6 {[%clk 00:00:50]} {[%emt 00:00:05]} 28. Rd3
{[%clk 00:01:37]} {[%emt 00:00:04]} R8d7 {[%clk 00:00:43]} {[%emt 00:00:09]} 29.
Rcd1 {[%clk 00:01:36]} {[%emt 00:00:03]} e5 {[%clk 00:00:37]} {[%emt 00:00:07]}
30. hxg6 {[%clk 00:01:27]} {[%emt 00:00:11]} hxg6 {[%clk 00:00:38]} {[%emt
00:00:01]} 31. a3 {[%clk 00:01:16]} {[%emt 00:00:13]} Rc6 {[%clk 00:00:21]}
{[%emt 00:00:19]} 32. Qe3 {[%clk 00:01:17]} {[%emt 00:00:02]} d4 {[%clk
00:00:21]} {[%emt 00:00:01]} 33. Qd2 {[%clk 00:01:16]} {[%emt 00:00:04]} Rdc7
{[%clk 00:00:21]} {[%emt 00:00:02]} 34. f4 {[%clk 00:01:10]} {[%emt 00:00:08]}
Rc2 {[%clk 00:00:21]} {[%emt 00:00:02]} 35. Qe1 {[%clk 00:01:11]} {[%emt
00:00:01]} e4 {[%clk 00:00:17]} {[%emt 00:00:06]} 36. R3d2 {[%clk 00:01:10]}
{[%emt 00:00:03]} Qb5 {[%clk 00:00:09]} {[%emt 00:00:10]} 37. Rxc2 {[%clk
00:00:57]} {[%emt 00:00:15]} Rxc2 {[%clk 00:00:10]} {[%emt 00:00:01]} 38. Rd2
{[%clk 00:00:50]} {[%emt 00:00:09]} Qxb3 {[%clk 00:00:07]} {[%emt 00:00:05]} 39.
Rxd4 {[%clk 00:00:33]} {[%emt 00:00:19]} Qe3 {[%clk 00:00:07]} {[%emt
00:00:02]} 40. Rd7+ {[%clk 00:00:31]} {[%emt 00:00:03]} Kg8 {[%clk 00:00:08]}
41. Rd8+ {[%clk 00:00:30]} {[%emt 00:00:03]} Kf7 {[%clk 00:00:09]} 42. Kf1
{[%clk 00:00:27]} {[%emt 00:00:07]} Rc1 {[%clk 00:00:08]} {[%emt 00:00:03]} 43.
Rd1 {[%clk 00:00:28]} {[%emt 00:00:02]} Rxd1 {[%clk 00:00:05]} {[%emt
00:00:04]} 44. Qxd1 {[%clk 00:00:29]} {[%emt 00:00:01]} Qxg3 {[%clk 00:00:05]}
{[%emt 00:00:02]} 45. Qd7+ {[%clk 00:00:29]} {[%emt 00:00:01]} Kg8 {[%clk
00:00:06]} 46. Qe6+ {[%clk 00:00:24]} {[%emt 00:00:07]} Kg7 {[%clk 00:00:07]}
{[%emt 00:00:01]} 47. Qxe4 {[%clk 00:00:23]} {[%emt 00:00:04]} Qxa3 {[%emt
00:00:02]} 48. Qb7+ {[%emt 00:00:02]} Kg8 {[%clk 00:00:00]} {[%emt 00:00:03]}
49. Qd5+ {[%clk 00:00:23]} {[%emt 00:00:02]} Kg7 {[%clk 00:00:00]} {[%emt
00:00:02]} 50. Qb7+ {[%clk 00:00:23]} {[%emt 00:00:02]} Kf8 {[%clk 00:00:00]}
{[%emt 00:00:01]} 51. Qc8+ {[%clk 00:00:23]} {[%emt 00:00:02]} Kf7 {[%clk
00:00:00]} {[%emt 00:00:01]} 1/2-1/2

[Event "MČR v bleskovém šachu družstev 2019"]
[Site "Teplice, Czech Republic"]
[Date "2019.09.14"]
[Round "10.22"]
[White "Mach, Petr"]
[Black "Lorenc, Tomas"]
[Result "1-0"]
[TimeControl "3 mim. + 2 s"]
[BlackFideId "313203"]
[WhiteElo "1961"]
[BlackElo "2094"]

1. Nf3 {[%clk 00:03:02]} {[%emt 00:00:02]} Nf6 {[%clk 00:03:03]} {[%emt
00:00:01]} 2. c4 {[%clk 00:03:03]} {[%emt 00:00:01]} g6 {[%clk 00:03:03]}
{[%emt 00:00:02]} 3. Nc3 {[%clk 00:03:03]} {[%emt 00:00:01]} Bg7 {[%clk
00:03:04]} {[%emt 00:00:02]} 4. d4 {[%clk 00:03:04]} c5 {[%clk 00:03:04]}
{[%emt 00:00:01]} 5. g3 {[%clk 00:03:01]} {[%emt 00:00:06]} O-O {[%clk
00:03:03]} {[%emt 00:00:03]} 6. Bg2 {[%clk 00:03:02]} {[%emt 00:00:01]} d6
{[%clk 00:03:00]} {[%emt 00:00:05]} 7. dxc5 {[%clk 00:02:58]} {[%emt 00:00:07]}
dxc5 {[%clk 00:02:58]} {[%emt 00:00:03]} 8. O-O {[%clk 00:02:59]} {[%emt
00:00:01]} Nc6 {[%clk 00:02:44]} {[%emt 00:00:16]} 9. Qxd8 {[%clk 00:02:41]}
{[%emt 00:00:20]} Rxd8 {[%clk 00:02:44]} {[%emt 00:00:02]} 10. Be3 {[%clk
00:02:43]} Nd4 {[%clk 00:02:37]} {[%emt 00:00:09]} 11. Rfd1 {[%clk 00:02:09]}
{[%emt 00:00:35]} Be6 {[%clk 00:02:15]} {[%emt 00:00:25]} 12. Nxd4 {[%clk
00:02:06]} {[%emt 00:00:06]} cxd4 {[%clk 00:02:15]} {[%emt 00:00:01]} 13. Bxd4
{[%clk 00:01:34]} {[%emt 00:00:34]} Bxc4 {[%clk 00:02:14]} {[%emt 00:00:03]} 14.
b3 {[%clk 00:01:14]} {[%emt 00:00:21]} Be6 {[%clk 00:02:05]} {[%emt 00:00:12]}
15. Bxb7 {[%emt 00:00:12]} Rab8 {[%clk 00:02:03]} {[%emt 00:00:03]} 16. Bf3
{[%clk 00:01:06]} {[%emt 00:00:01]} Rbc8 {[%clk 00:01:58]} {[%emt 00:00:07]} 17.
Rac1 {[%clk 00:00:46]} {[%emt 00:00:22]} Bh6 {[%clk 00:01:47]} {[%emt
00:00:13]} 18. e3 {[%clk 00:00:44]} {[%emt 00:00:03]} Bg7 {[%clk 00:01:35]}
{[%emt 00:00:15]} 19. Ne4 {[%clk 00:00:29]} {[%emt 00:00:17]} Nxe4 {[%clk
00:01:21]} {[%emt 00:00:16]} 20. Rxc8 {[%clk 00:00:23]} {[%emt 00:00:08]} Rxc8
{[%clk 00:01:13]} {[%emt 00:00:09]} 21. Bxe4 {[%clk 00:00:24]} {[%emt
00:00:01]} Bxd4 {[%clk 00:01:01]} {[%emt 00:00:15]} 22. Rxd4 {[%clk 00:00:25]}
{[%emt 00:00:01]} Bh3 {[%clk 00:00:53]} {[%emt 00:00:10]} 23. Rd1 {[%clk
00:00:21]} {[%emt 00:00:06]} f5 {[%clk 00:00:47]} {[%emt 00:00:08]} 24. Bg2
{[%clk 00:00:21]} {[%emt 00:00:01]} Bg4 {[%clk 00:00:36]} {[%emt 00:00:14]} 25.
f3 {[%clk 00:00:17]} {[%emt 00:00:06]} Bh5 {[%clk 00:00:37]} 26. Rd2 {[%clk
00:00:17]} {[%emt 00:00:03]} Kf7 {[%clk 00:00:32]} {[%emt 00:00:06]} 27. Kf2
{[%clk 00:00:18]} g5 {[%clk 00:00:28]} {[%emt 00:00:07]} 28. f4 {[%clk
00:00:14]} {[%emt 00:00:07]} g4 {[%clk 00:00:27]} {[%emt 00:00:03]} 29. Bd5+
{[%clk 00:00:13]} {[%emt 00:00:03]} Kf6 {[%clk 00:00:25]} {[%emt 00:00:05]} 30.
Bc4 {[%clk 00:00:11]} {[%emt 00:00:02]} Rc7 {[%clk 00:00:25]} {[%emt 00:00:03]}
31. Rd8 {[%clk 00:00:11]} {[%emt 00:00:02]} Bg6 {[%clk 00:00:23]} {[%emt
00:00:04]} 32. Rf8+ {[%clk 00:00:07]} {[%emt 00:00:06]} Kg7 {[%clk 00:00:24]}
{[%emt 00:00:01]} 33. Rd8 {[%clk 00:00:07]} {[%emt 00:00:02]} Kf6 {[%clk
00:00:24]} {[%emt 00:00:02]} 34. Rd4 {[%clk 00:00:06]} {[%emt 00:00:02]} Be8
{[%clk 00:00:22]} {[%emt 00:00:05]} 35. a4 {[%clk 00:00:04]} {[%emt 00:00:04]}
Bc6 {[%clk 00:00:22]} {[%emt 00:00:02]} 36. Bd5 {[%clk 00:00:04]} {[%emt
00:00:01]} Bxd5 {[%clk 00:00:17]} {[%emt 00:00:07]} 37. Rxd5 {[%clk 00:00:04]}
{[%emt 00:00:02]} Rc2+ {[%clk 00:00:18]} {[%emt 00:00:01]} 38. Kg1 {[%clk
00:00:05]} Re2 {[%clk 00:00:17]} {[%emt 00:00:03]} 39. Re5 {[%clk 00:00:05]}
{[%emt 00:00:03]} a6 {[%clk 00:00:15]} {[%emt 00:00:05]} 40. b4 {[%clk
00:00:05]} {[%emt 00:00:01]} e6 {[%clk 00:00:15]} {[%emt 00:00:02]} 41. b5
{[%clk 00:00:05]} a5 {[%clk 00:00:14]} {[%emt 00:00:04]} 42. b6 {[%clk
00:00:06]} {[%emt 00:00:01]} Re1+ {[%clk 00:00:05]} {[%emt 00:00:11]} 43. Kf2
{[%clk 00:00:07]} {[%emt 00:00:02]} Rc1 {[%clk 00:00:05]} 44. b7 {[%clk
00:00:07]} {[%emt 00:00:02]} 1-0